bitfinex/quotes_BTCUSD_20260103
["timestamp","ask_amount","ask_price","bid_price","bid_amount"]
[1767481335100,0.0110435,90551.0,90547.0,0.01104398]
[1767481335620,0.01104362,90550.0,90547.0,0.01104398]
[1767481335989,0.01104362,90550.0,90546.0,0.01104411]
[1767481337637,0.01104374,90549.0,90545.0,0.05871454]
[1767481337838,0.0110435,90551.0,90546.0,0.01104411]
[1767481338162,0.0110435,90551.0,90549.0,0.000999]
[1767481338435,0.0110435,90551.0,90546.0,0.06626425]
[1767481338857,0.0110435,90551.0,90547.0,0.01104398]
[1767481339473,0.0100445,90551.0,90547.0,0.01104398]
[1767481339629,0.0100445,90551.0,90545.0,0.11393554]
[1767481339630,0.22083763,90565.0,90554.0,0.01104313]
[1767481339974,0.22083763,90565.0,90552.0,0.04767031]
[1767481339975,0.01104179,90565.0,90560.0,0.0110424]
[1767481340150,0.01104179,90565.0,90560.0,0.01075585]
[1767481340482,0.01104179,90565.0,90561.0,0.01104228]
[1767481340615,0.01104179,90565.0,90561.0,0.01099814]
[1767481343889,0.13469678,90566.0,90562.0,0.01104215]
[1767481346327,0.13469678,90566.0,90563.0,0.01104203]
[1767481346328,0.12365511,90566.0,90563.0,0.01104203]
[1767481348235,0.04767717,90565.0,90563.0,0.01104203]
[1767481348460,0.04767717,90565.0,90560.0,0.05397412]
[1767481348661,0.04767717,90565.0,90563.0,0.01104203]
[1767481349585,0.04767717,90565.0,90562.0,0.01104215]
[1767481350240,0.05871896,90565.0,90561.0,0.01104228]
[1767481350440,0.01104179,90565.0,90562.0,0.04766499]
[1767481356885,0.12365511,90566.0,90564.0,0.04945436]
[1767481357088,0.12365511,90566.0,90564.0,0.04816881]
[1767481363020,0.12265611,90566.0,90564.0,0.04816881]
[1767481370848,0.12265611,90566.0,90564.0,0.04788226]
[1767481371531,0.12265611,90566.0,90563.0,0.06625221]
[1767481372044,0.12265611,90566.0,90563.0,0.11570657]
[1767481372532,0.12265611,90566.0,90563.0,0.06049639]
[1767481373096,0.12265611,90566.0,90563.0,0.11570651]
[1767481373304,0.12265611,90566.0,90563.0,0.11550648]
[1767481374497,0.12265611,90566.0,90563.0,0.11530645]
[1767481375473,0.12265611,90566.0,90563.0,0.11520644]
[1767481375805,0.12265611,90566.0,90563.0,0.11510643]
[1767481376605,0.12265611,90566.0,90563.0,0.11500642]
[1767481377906,0.12265611,90566.0,90563.0,0.11480639]
[1767481384993,0.12265611,90566.0,90563.0,0.11451985]
[1767481386477,0.12265611,90566.0,90563.0,0.05930973]
[1767481386812,0.12265611,90566.0,90563.0,0.00985537]
[1767481387024,0.13369778,90566.0,90563.0,0.00885637]
[1767481387231,0.00020003,90563.0,90556.0,0.01104289]
[1767481387355,0.01104215,90562.0,90557.0,0.01104276]
[1767481388310,0.01104228,90561.0,90558.0,0.01104264]
[1767481388873,0.01104203,90563.0,90559.0,0.01104252]
[1767481393526,0.01104191,90564.0,90560.0,0.0110424]
[1767481396346,0.01104191,90564.0,90557.0,0.01104276]
[1767481396347,0.00020003,90560.0,90554.0,0.01104313]
[1767481396552,0.01104252,90559.0,90556.0,0.04808865]
[1767481396754,0.01024352,90559.0,90556.0,0.04808865]
[1767481397799,0.0110424,90560.0,90556.0,0.05913154]
[1767481398844,0.06625406,90561.0,90557.0,0.01104276]
[1767481399966,0.0110424,90560.0,90557.0,0.01075621]
[1767481400392,0.0110424,90560.0,90556.0,0.05913154]
[1767481400597,0.01104252,90559.0,90556.0,0.04808865]
[1767481404076,0.01104203,90563.0,90556.0,0.10330302]
[1767481404260,0.02212,90570.0,90564.0,0.05520919]
[1767481405183,0.02384508,90570.0,90564.0,0.05520919]
[1767481405340,0.07905081,90571.0,90564.0,0.05520919]
[1767481405729,0.02384508,90570.0,90564.0,0.05520919]
[1767481406024,0.0110413,90569.0,90565.0,0.01104179]
[1767481408936,0.03488638,90569.0,90565.0,0.01104179]
[1767481409260,0.01104142,90568.0,90564.0,0.01104191]
[1767481409447,0.01104154,90567.0,90563.0,0.01104203]
[1767481409640,0.12365511,90564.0,90563.0,0.01104203]
[1767481409844,0.12365511,90564.0,90562.0,0.06625258]
[1767481410284,0.12365511,90564.0,90562.0,0.01104215]
[1767481410933,0.12365511,90564.0,90559.0,0.05671164]
[1767481411276,0.12365511,90564.0,90559.0,0.01104252]
[1767481411905,0.01104203,90563.0,90559.0,0.01104252]
[1767481413327,0.01104203,90563.0,90560.0,0.0110424]
[1767481413511,0.12365511,90564.0,90560.0,0.0110424]
[1767481413915,0.13469702,90564.0,90560.0,0.0110424]
[1767481414348,0.13469702,90564.0,90560.0,0.01075585]
[1767481414556,0.12365511,90564.0,90561.0,0.01104228]
[1767481415877,0.01104289,90556.0,90551.0,0.05982245]
[1767481416156,0.01104289,90556.0,90552.0,0.02212]
[1767481416157,0.01097805,90555.0,90552.0,0.02212]
[1767481416307,0.06619348,90555.0,90552.0,0.07089895]
[1767481416507,0.05521622,90554.0,90552.0,0.07089895]
[1767481416908,0.01104289,90556.0,90552.0,0.08194232]
[1767481417526,0.01104276,90557.0,90556.0,0.00079897]
[1767481417962,0.0552136,90558.0,90554.0,0.01104313]
[1767481418585,0.06625624,90558.0,90554.0,0.01104313]
[1767481419536,0.06625624,90558.0,90552.0,0.08194232]
[1767481419740,0.05522224,90544.0,90538.0,0.06650439]
[1767481419945,0.01104472,90541.0,90538.0,0.0002343]
[1767481420142,0.01104398,90547.0,90538.0,0.0002343]
[1767481420143,0.01104362,90550.0,90543.0,0.06626685]
[1767481420342,0.01104313,90554.0,90547.0,0.01104398]
[1767481420570,0.01104252,90559.0,90554.0,0.01104313]
[1767481420796,0.01104252,90559.0,90543.0,0.00035769]
[1767481420797,0.01104289,90556.0,90546.0,0.01104411]
[1767481420945,0.01104325,90553.0,90548.0,0.01104386]
[1767481421145,0.01104325,90553.0,90550.0,0.01104362]
[1767481421349,0.0002,90550.0,90548.0,0.01104386]
[1767481421643,0.0110435,90551.0,90547.0,0.04877895]
[1767481421854,0.01104411,90546.0,90543.0,0.02247769]
[1767481422320,0.01104386,90548.0,90543.0,0.03352216]
[1767481422887,0.06626283,90549.0,90544.0,0.01104435]
[1767481423206,0.01104362,90550.0,90549.0,0.01079897]
[1767481423418,0.01104362,90550.0,90549.0,0.00999997]
[1767481423602,0.01104362,90550.0,90546.0,0.01104411]
[1767481424034,0.01004462,90550.0,90546.0,0.01104411]
[1767481424199,0.01104374,90549.0,90546.0,0.01104411]
[1767481424415,0.01104374,90549.0,90544.0,0.05522177]
[1767481424416,0.01104374,90549.0,90545.0,0.01104423]
[1767481428651,0.01097478,90549.0,90545.0,0.01104423]
[1767481430741,0.01097478,90549.0,90542.0,0.04393523]
[1767481431088,0.01097478,90549.0,90545.0,0.01062219]
[1767481431295,0.01004462,90550.0,90546.0,0.01104411]
[1767481431984,0.000999,90546.0,90543.0,0.01104447]
[1767481432180,0.01104386,90548.0,90543.0,0.01104447]
[1767481432380,0.01104386,90548.0,90544.0,0.01104435]
[1767481432584,0.01104386,90548.0,90545.0,0.01104423]
[1767481432783,0.01004462,90550.0,90545.0,0.01104423]
[1767481432995,0.01004462,90550.0,90548.0,0.00999997]
[1767481433598,0.01004462,90550.0,90546.0,0.01104411]
[1767481433806,0.01004462,90550.0,90547.0,0.04867894]
[1767481435808,0.01104423,90545.0,90538.0,0.01123526]
[1767481436058,0.01104423,90545.0,90541.0,0.04877895]
[1767481436646,0.01104423,90545.0,90538.0,0.01123526]
[1767481436647,0.06626612,90544.0,90538.0,0.00019018]
[1767481436852,0.06627382,90534.0,90533.0,0.07089895]
[1767481437056,0.01104533,90536.0,90533.0,0.07096994]
[1767481437273,0.01104533,90536.0,90534.0,0.04877895]
[1767481438642,0.01104533,90536.0,90533.0,7.099e-05]
[1767481438858,0.06627236,90536.0,90533.0,7.099e-05]
[1767481439059,0.06627236,90536.0,90528.0,0.10401006]
[1767481439060,0.01104667,90525.0,90521.0,0.01104716]
[1767481439260,0.06627673,90530.0,90525.0,0.0893988]
[1767481439384,0.01104569,90533.0,90526.0,0.0108465]
[1767481439582,0.01104557,90534.0,90529.0,0.01104618]
[1767481439831,0.01104533,90536.0,90531.0,0.01104594]
[1767481440190,0.06627162,90537.0,90531.0,0.0552297]
[1767481440832,0.01104496,90539.0,90527.0,0.01104642]
[1767481440833,0.01104581,90532.0,90527.0,0.01104642]
[1767481441038,0.01104545,90535.0,90530.0,0.01104606]
[1767481441231,0.01104533,90536.0,90532.0,0.01104581]
[1767481441431,0.01104533,90536.0,90531.0,0.01104594]
[1767481441432,0.01104545,90535.0,90531.0,0.01104594]
[1767481441632,0.06627068,90538.0,90532.0,0.01104581]
[1767481441846,0.01104484,90540.0,90536.0,0.01104533]
[1767481442051,0.01104496,90539.0,90535.0,0.02104542]
[1767481442243,0.01104496,90539.0,90535.0,0.01104545]
[1767481443352,0.01104472,90541.0,90536.0,0.01104533]
[1767481443509,0.02212,90546.0,90541.0,0.06626788]
[1767481443713,0.0110435,90551.0,90541.0,0.06039925]
[1767481444129,0.0110435,90551.0,90541.0,0.01104472]
[1767481444611,0.01104374,90549.0,90546.0,0.01104411]
[1767481445180,0.01104374,90549.0,90542.0,0.05522252]
[1767481445379,0.01104374,90549.0,90543.0,0.06626634]
[1767481445581,0.01104374,90549.0,90545.0,0.01104423]
[1767481447403,0.06626214,90550.0,90545.0,0.01104423]
[1767481447404,0.01104362,90550.0,90546.0,0.01104411]
[1767481447902,0.04862148,90549.0,90543.0,0.02923736]
[1767481448360,0.04862148,90549.0,90545.0,0.05522076]
[1767481448533,0.01104325,90553.0,90543.0,0.02923736]
[1767481448534,0.01104264,90558.0,90547.0,0.01104398]
[1767481448836,0.01104289,90556.0,90552.0,0.01104337]
[1767481449130,0.01104289,90556.0,90548.0,0.06626301]
[1767481449131,0.010999,90552.0,90548.0,0.06626301]
[1767481449473,0.010999,90552.0,90549.0,0.01104374]
[1767481449474,0.01,90552.0,90549.0,0.01104374]
[1767481449856,0.00993103,90552.0,90549.0,0.01104374]
[1767481449998,0.02133238,90552.0,90550.0,0.04935453]
[1767481450203,0.02133238,90552.0,90550.0,0.04835553]
[1767481451449,0.01028901,90552.0,90550.0,0.04835553]
[1767481451801,0.0655065,90552.0,90550.0,0.04835553]
[1767481452448,0.01028901,90552.0,90550.0,0.04835553]
[1767481453644,0.02133238,90552.0,90548.0,0.01104386]
[1767481454336,0.01140135,90552.0,90548.0,0.01104386]
[1767481454536,0.01140135,90552.0,90549.0,0.01104374]
[1767481454777,0.01104301,90555.0,90551.0,0.0110435]
[1767481454958,6.32e-05,90555.0,90552.0,0.000999]
[1767481455406,6.32e-05,90555.0,90551.0,0.0110435]
[1767481455655,6.32e-05,90555.0,90551.0,0.06039803]
[1767481455983,0.01104325,90553.0,90548.0,0.01104386]
[1767481456182,0.01104325,90553.0,90549.0,0.04935453]
[1767481456382,0.00993103,90549.0,90546.0,0.00564313]
[1767481456790,0.01104398,90547.0,90543.0,0.01104447]
[1767481457004,0.01104496,90539.0,90528.0,0.06040083]
[1767481457199,0.05522624,90537.0,90529.0,0.02212]
[1767481457403,0.01104581,90532.0,90530.0,0.04935453]
[1767481457632,0.01104569,90533.0,90530.0,0.04935453]
[1767481458216,0.0662731,90535.0,90530.0,0.06040059]
[1767481458544,0.0662731,90535.0,90530.0,0.01104606]
[1767481458749,0.01104557,90534.0,90530.0,0.01104606]
[1767481459071,0.01104581,90532.0,90529.0,0.02212]
[1767481459443,0.01104581,90532.0,90529.0,0.03316618]
[1767481459662,0.01093003,90529.0,90528.0,0.04935453]
[1767481460054,0.000999,90529.0,90528.0,0.04935453]
[1767481460268,0.01104581,90532.0,90528.0,0.06040083]
[1767481460992,0.01104594,90531.0,90528.0,0.04835553]
[1767481461280,0.01095767,90531.0,90528.0,0.04835553]
[1767481461637,0.01095767,90531.0,90527.0,0.04935453]
[1767481461638,0.01104606,90530.0,90527.0,0.04935453]
[1767481462916,0.01104618,90529.0,90527.0,0.04935453]
[1767481464158,0.06628076,90524.0,90521.0,0.04935453]
[1767481464315,0.01104667,90525.0,90524.0,0.07247353]
[1767481464921,0.01104667,90525.0,90524.0,0.07147453]
[1767481465272,6.318e-05,90525.0,90524.0,0.07147453]
[1767481466688,0.01104594,90531.0,90527.0,0.01104642]
[1767481466845,0.01095765,90531.0,90527.0,0.0114044]
[1767481467630,0.01095765,90531.0,90527.0,0.06075893]
[1767481468295,0.01100492,90532.0,90531.0,0.000936]
[1767481468425,0.01100492,90532.0,90531.0,6.896e-05]
[1767481468857,0.01100492,90532.0,90528.0,0.06040083]
[1767481470020,0.01100492,90532.0,90529.0,0.01084615]
[1767481470948,0.01100492,90532.0,90528.0,0.06040083]
[1767481471248,0.01104594,90531.0,90528.0,0.04935453]
[1767481471539,0.01010994,90531.0,90528.0,0.04935453]
[1767481471956,0.01010994,90531.0,90526.0,0.06627878]
[1767481471957,0.0110474,90519.0,90488.0,0.1497]
[1767481472158,0.01104716,90521.0,90516.0,0.06628662]
[1767481472359,0.01104728,90520.0,90516.0,0.01104777]
[1767481472901,0.01104716,90521.0,90517.0,0.01104764]
[1767481473104,0.01104716,90521.0,90517.0,0.01004864]
[1767481473632,0.01104691,90523.0,90519.0,0.0110474]
[1767481475503,0.01104703,90522.0,90517.0,0.01004864]
[1767481476306,0.06628276,90522.0,90517.0,0.01004864]
[1767481476507,0.01104728,90520.0,90517.0,0.01004864]
[1767481477063,0.01104728,90520.0,90517.0,0.00638502]
[1767481479576,0.01104728,90520.0,90516.0,0.01104777]
[1767481479994,0.01095898,90520.0,90516.0,0.01104777]
[1767481481069,0.01104703,90522.0,90520.0,0.000999]
[1767481481499,0.01104703,90522.0,90517.0,0.01104764]
[1767481481731,0.01104703,90522.0,90517.0,0.06628536]
[1767481481933,0.01104703,90522.0,90518.0,0.01104752]
[1767481482545,0.01104703,90522.0,90519.0,0.0110474]
[1767481482928,0.01104691,90523.0,90519.0,0.0110474]
[1767481483578,0.01104703,90522.0,90517.0,0.01104764]
[1767481484132,0.01104703,90522.0,90518.0,0.01104752]
[1767481485023,0.01004803,90522.0,90519.0,0.0110474]
[1767481488341,0.01104691,90523.0,90519.0,0.0110474]
[1767481488342,0.05900682,90523.0,90519.0,0.0110474]
[1767481488550,0.05900682,90523.0,90517.0,0.05390948]
[1767481488723,0.01104691,90523.0,90517.0,0.05390948]
[1767481489331,0.01104691,90523.0,90518.0,0.05523716]
[1767481489740,0.01104691,90523.0,90518.0,0.05513715]
[1767481489942,0.01104691,90523.0,90519.0,0.01084737]
[1767481490857,0.06628222,90522.0,90517.0,0.01104764]
[1767481491059,0.01093003,90519.0,90516.0,0.01104777]
[1767481491263,0.02097843,90519.0,90514.0,0.06628762]
[1767481491463,0.02097843,90519.0,90515.0,0.04855976]
[1767481492083,0.02097843,90519.0,90516.0,0.05950752]
[1767481492283,0.02097843,90519.0,90516.0,0.05850852]
[1767481493230,0.02097843,90519.0,90516.0,0.05830849]
[1767481493486,0.02097843,90519.0,90501.0,0.0110496]
[1767481493487,0.01104838,90511.0,90501.0,0.0110496]
[1767481493738,0.01104838,90511.0,90507.0,0.04855976]
[1767481493919,0.01104825,90512.0,90508.0,0.0596085]
[1767481494120,0.01104777,90516.0,90512.0,0.01104825]
[1767481494329,0.12365511,90513.0,90512.0,0.01104825]
[1767481499243,0.05523802,90518.0,90512.0,0.01104825]
[1767481499244,0.02212,90522.0,90515.0,0.01104789]
[1767481499445,0.01104691,90523.0,90519.0,0.0110474]
[1767481499761,0.03316679,90524.0,90520.0,0.01104728]
[1767481500450,0.03306679,90524.0,90520.0,0.01104728]
[1767481500830,0.06627967,90526.0,90520.0,0.01104728]
[1767481501032,2.75975122,90588.0,90519.0,0.0110474]
[1767481501033,0.02212,90529.0,90525.0,0.01104667]
[1767481501220,0.12365511,90528.0,90526.0,0.01104655]
[1767481501824,0.000999,90526.0,90525.0,0.01104667]
[1767481502293,0.00993103,90525.0,90523.0,0.01104691]
[1767481502441,0.00993103,90525.0,90523.0,0.06628112]
[1767481502843,0.12365511,90528.0,90525.0,0.01104667]
[1767481503047,0.12365511,90528.0,90527.0,0.05523214]
[1767481503251,0.02212,90533.0,90532.0,0.01104581]
[1767481503610,0.02212,90533.0,90531.0,0.01104594]
[1767481503812,0.12365511,90532.0,90531.0,0.01104594]
[1767481504085,0.00993103,90531.0,90527.0,0.06627844]
[1767481504489,0.04580883,90530.0,90527.0,0.01104642]
[1767481504724,0.13470092,90532.0,90527.0,0.01104642]
[1767481504930,0.05692376,90531.0,90523.0,0.03256034]
[1767481505150,0.05692376,90531.0,90520.0,0.29009509]
[1767481505151,0.01104642,90527.0,90510.0,0.51106416]
[1767481505326,0.01104667,90525.0,90521.0,0.01104716]
[1767481505627,0.01104679,90524.0,90521.0,0.01104716]
[1767481505806,0.01104667,90525.0,90520.0,0.04793645]
[1767481506001,0.01104667,90525.0,90520.0,0.10317241]
[1767481506169,0.01104655,90526.0,90522.0,0.01104703]
[1767481506585,0.01104655,90526.0,90523.0,0.04793645]
[1767481508046,0.01104606,90530.0,90526.0,0.01194554]
[1767481508183,0.12365511,90532.0,90526.0,0.05988199]
[1767481508391,0.13470092,90532.0,90528.0,0.05898275]
[1767481509568,0.01104594,90531.0,90528.0,0.04793645]
[1767481509797,0.01095761,90531.0,90528.0,0.04793645]
[1767481510137,0.14577511,90532.0,90531.0,0.04873544]
[1767481510541,0.14577511,90532.0,90531.0,0.00079899]
[1767481510737,0.14577511,90532.0,90528.0,0.0110463]
[1767481511362,0.14497611,90532.0,90528.0,0.0110463]
[1767481511796,0.13390192,90532.0,90528.0,0.0110463]
[1767481512802,0.15602192,90532.0,90528.0,0.0110463]
[1767481514154,0.13390192,90532.0,90528.0,0.0110463]
[1767481514363,0.15602192,90532.0,90528.0,0.0110463]
[1767481516421,0.15602192,90532.0,90528.0,0.05898275]
[1767481517381,0.14497611,90532.0,90529.0,0.05898263]
[1767481518259,0.12285611,90532.0,90529.0,0.05898263]
[1767481518462,0.12285611,90532.0,90529.0,0.0587826]
[1767481519424,0.13390192,90532.0,90529.0,0.04693745]
[1767481520682,0.15602192,90532.0,90529.0,0.04693745]
[1767481523701,0.13390192,90532.0,90529.0,0.04693745]
[1767481524990,0.18913139,90532.0,90529.0,0.04693745]
[1767481525231,0.01104618,90529.0,90526.0,0.04793645]
[1767481525794,0.06627605,90531.0,90526.0,0.058983]
[1767481527342,0.06618772,90531.0,90526.0,0.058983]
[1767481527940,0.01104594,90531.0,90527.0,0.01104642]
[1767481528154,0.13390192,90532.0,90528.0,0.05898275]
[1767481528712,0.01104594,90531.0,90528.0,0.04793645]
[1767481528892,0.01095761,90531.0,90528.0,0.04793645]
[1767481530575,0.01095761,90531.0,90526.0,0.01104655]
[1767481531029,0.000999,90530.0,90526.0,0.01004755]
[1767481531203,0.000999,90530.0,90527.0,0.01104642]
[1767481531967,0.01104606,90530.0,90528.0,0.04518573]
[1767481533446,0.01091612,90530.0,90528.0,0.04518573]
[1767481533628,0.03904383,90532.0,90530.0,0.000999]
[1767481533946,0.12365511,90531.0,90528.0,0.0110463]
[1767481536084,0.12265611,90531.0,90528.0,0.06627745]
[1767481537748,0.12265611,90531.0,90528.0,0.0110463]
[1767481538088,0.12260936,90531.0,90528.0,0.0110463]
[1767481539727,0.12260936,90531.0,90528.0,0.06627741]
[1767481540394,0.12260936,90531.0,90530.0,0.05523031]
[1767481540578,0.12252099,90531.0,90530.0,0.05523031]
[1767481540983,0.12252099,90531.0,90528.0,0.06627741]
[1767481544151,0.04942994,90534.0,90530.0,0.01104606]
[1767481544324,0.04942994,90534.0,90530.0,0.06627637]
[1767481544325,0.04942994,90531.0,90530.0,0.06627637]
[1767481544523,0.12365511,90532.0,90530.0,0.06627637]
[1767481544852,0.000999,90530.0,90527.0,0.04518573]
[1767481545061,0.01104594,90531.0,90527.0,0.05623215]
[1767481545804,0.01104594,90531.0,90527.0,0.05523315]
[1767481546870,0.00999999,90527.0,90524.0,0.04518573]
[1767481547278,0.00999999,90527.0,90524.0,0.11146603]
[1767481547903,0.01104618,90529.0,90525.0,0.01104667]
[1767481551519,0.01104594,90531.0,90526.0,0.01104655]
[1767481551725,0.01104594,90531.0,90528.0,0.0110463]
[1767481551917,0.13470092,90532.0,90527.0,0.04518573]
[1767481552710,0.13470092,90532.0,90528.0,0.04518573]
[1767481552909,0.13470092,90532.0,90528.0,0.05623203]
[1767481553466,0.13370192,90532.0,90528.0,0.05623203]
[1767481556268,0.13370192,90532.0,90528.0,0.0075132]
[1767481556899,0.13370192,90532.0,90528.0,0.05269893]
[1767481558486,0.12265611,90532.0,90530.0,0.04518573]
[1767481558982,0.12265611,90532.0,90530.0,0.04418673]
[1767481561441,0.05522741,90535.0,90531.0,0.04844069]
[1767481561656,0.01104545,90535.0,90531.0,0.01104594]
[1767481561853,0.01004645,90535.0,90531.0,0.01104594]
[1767481562013,0.0331652,90537.0,90532.0,0.01104581]
[1767481562217,0.01104533,90536.0,90532.0,0.01104581]
[1767481562622,0.01104545,90535.0,90532.0,0.01104581]
[1767481563730,0.01104545,90535.0,90531.0,0.01104594]
[1767481563929,0.12365511,90532.0,90531.0,0.01104594]
[1767481565989,0.12365511,90532.0,90531.0,0.01004694]
[1767481566334,0.12265611,90532.0,90531.0,0.01004694]
[1767481567337,0.12256771,90532.0,90531.0,0.01004694]
[1767481568756,0.10989998,90532.0,90531.0,0.01004694]
[1767481570870,0.10981156,90532.0,90530.0,0.06627586]
[1767481571161,0.10981156,90532.0,90530.0,0.01104606]
[1767481571304,0.10981156,90532.0,90530.0,0.06627586]
[1767481571727,0.09981156,90532.0,90530.0,0.06627586]
[1767481572509,0.08839164,90537.0,90530.0,0.06627586]
[1767481572510,0.05522522,90539.0,90533.0,0.01104569]
[1767481572729,0.44165708,90569.0,90528.0,0.0075132]
[1767481572730,0.00048377,90544.0,90537.0,0.0110452]
[1767481572948,0.0001498,90549.0,90534.0,0.28997839]
[1767481573147,0.01104313,90554.0,90531.0,0.02212]
[1767481573148,0.02350611,90548.0,90547.0,0.06626336]
[1767481573398,0.02258037,90548.0,90546.0,0.06626417]
[1767481573560,0.02258037,90548.0,90547.0,0.01104398]
[1767481573757,0.01104325,90553.0,90549.0,0.01104374]
[1767481573981,0.01095483,90553.0,90549.0,0.01104374]
[1767481574358,0.01104337,90552.0,90548.0,0.01089486]
[1767481574563,0.01131284,90553.0,90548.0,0.01089486]
[1767481574963,0.00035801,90553.0,90549.0,0.01104374]
[1767481575186,0.01140126,90553.0,90549.0,0.01104374]
[1767481576064,0.00035801,90553.0,90550.0,0.01104362]
[1767481577114,0.01140126,90553.0,90549.0,0.01104374]
[1767481577717,0.00035801,90553.0,90550.0,0.01104362]
[1767481577918,0.01140126,90553.0,90549.0,0.01104374]
[1767481579897,0.01131284,90553.0,90549.0,0.01104374]
[1767481580257,0.00026959,90553.0,90550.0,0.01104362]
[1767481580465,0.01104301,90555.0,90553.0,0.00072941]
[1767481580640,8.3e-05,90555.0,90553.0,0.00072941]
[1767481580847,0.01112601,90555.0,90551.0,0.0110435]
[1767481581655,0.01104313,90554.0,90550.0,0.01104362]
[1767481581852,0.00027,90551.0,90550.0,0.01104362]
[1767481582080,0.01100291,90554.0,90550.0,0.01104362]
[1767481582428,0.01103758,90555.0,90551.0,0.0110435]
[1767481582669,0.01104313,90554.0,90550.0,0.01104362]
[1767481582870,0.00027,90551.0,90550.0,0.01104362]
[1767481583078,0.01103758,90555.0,90551.0,0.0110435]
[1767481583658,0.01104289,90556.0,90555.0,0.000729]
[1767481583974,0.01099469,90556.0,90555.0,0.000729]
[1767481584198,0.01104301,90555.0,90550.0,0.01104362]
[1767481584755,0.01104313,90554.0,90550.0,0.01104362]
[1767481585402,0.01104374,90549.0,90545.0,0.03316423]
[1767481585603,0.01097473,90549.0,90545.0,0.03324723]
[1767481585804,0.06626319,90548.0,90545.0,0.022203]
[1767481587210,0.06626319,90548.0,90545.0,0.021933]
[1767481587413,0.01104386,90548.0,90545.0,0.021933]
[1767481588156,0.01097473,90549.0,90545.0,0.03297723]
[1767481588358,0.01104362,90550.0,90548.0,0.000999]
[1767481588634,0.01095518,90550.0,90546.0,0.01104411]
[1767481588854,0.06626131,90551.0,90547.0,0.01104398]
[1767481589179,0.0110435,90551.0,90547.0,0.01104398]
[1767481589756,0.0100445,90551.0,90547.0,0.01104398]
[1767481590482,0.0100445,90551.0,90547.0,0.01090058]
[1767481591037,0.05521604,90554.0,90549.0,0.01104374]
[1767481591038,0.06625917,90554.0,90549.0,0.01104374]
[1767481591245,0.06625917,90554.0,90551.0,0.01]
[1767481591845,0.01104325,90553.0,90549.0,0.01104374]
[1767481592045,0.01104325,90553.0,90548.0,0.01104386]
[1767481592046,0.01104337,90552.0,90548.0,0.01104386]
[1767481594498,0.01104325,90553.0,90549.0,0.01104374]
[1767481595547,0.01104325,90553.0,90549.0,0.01095275]
[1767481595755,0.01095481,90553.0,90549.0,0.01095275]
[1767481596260,0.01095481,90553.0,90548.0,0.01104386]
[1767481596261,0.01104337,90552.0,90548.0,0.01104386]
[1767481597709,0.01097436,90552.0,90548.0,0.01104386]
[1767481597928,0.01095481,90553.0,90549.0,0.01104374]
[1767481600106,0.000999,90549.0,90546.0,0.01104411]
[1767481600343,0.0110435,90551.0,90546.0,0.01104411]
[1767481600932,0.0110435,90551.0,90547.0,0.01104398]
[1767481601337,0.0110435,90551.0,90547.0,0.01011398]
[1767481601676,0.05983662,90551.0,90547.0,0.00991395]
[1767481602454,0.01104362,90550.0,90546.0,0.01104411]
[1767481602987,0.01104374,90549.0,90545.0,0.03297723]
[1767481603593,0.01104362,90550.0,90546.0,0.01104411]
[1767481603819,0.04879312,90549.0,90546.0,0.01104411]
[1767481604185,0.05983686,90549.0,90545.0,0.03297723]
[1767481604556,0.01104386,90548.0,90545.0,0.03297723]
[1767481604738,0.01104386,90548.0,90545.0,0.021933]
[1767481605081,0.06626222,90550.0,90545.0,0.07715409]
[1767481605082,0.01104362,90550.0,90545.0,0.07715409]
[1767481605333,0.0110435,90551.0,90547.0,0.01104398]
[1767481605523,0.0110435,90551.0,90546.0,0.05521997]
[1767481605524,0.01104362,90550.0,90546.0,0.01104411]
[1767481609070,0.05983674,90550.0,90546.0,0.01104411]
[1767481609798,0.05983674,90550.0,90546.0,0.01095312]
[1767481609974,0.05983674,90550.0,90546.0,0.01066632]
[1767481610619,0.01104374,90549.0,90546.0,0.01066632]
[1767481611036,0.01104374,90549.0,90545.0,0.08819832]
[1767481611457,0.06626376,90548.0,90545.0,0.021933]
[1767481611606,0.01104374,90549.0,90545.0,0.03297723]
[1767481612554,0.01104374,90549.0,90546.0,0.01104411]
[1767481612731,0.01104374,90549.0,90545.0,0.03297723]
[1767481612942,0.01104386,90548.0,90545.0,0.03297723]
[1767481613146,0.01104374,90549.0,90545.0,0.03297723]
[1767481613921,0.01104386,90548.0,90545.0,0.021933]
[1767481614098,0.01104386,90548.0,90545.0,0.02188879]
[1767481614308,0.01104362,90550.0,90546.0,0.01104411]
[1767481614501,0.01104362,90550.0,90546.0,0.01084408]
[1767481615088,0.01104362,90550.0,90545.0,0.03293302]
[1767481615304,0.01104374,90549.0,90545.0,0.03293302]
[1767481615709,0.01104374,90549.0,90545.0,0.03288881]
[1767481616666,0.01104386,90548.0,90545.0,0.02184458]
[1767481621419,0.01104374,90549.0,90548.0,0.010999]
[1767481621634,0.05746372,90549.0,90545.0,0.03288881]
[1767481621991,0.04641998,90541.0,90538.0,0.01152887]
[1767481622181,0.04546837,90541.0,90539.0,0.02212]
[1767481622580,4.739e-05,90541.0,90539.0,0.02212]
[1767481622985,4.739e-05,90541.0,90539.0,0.07734423]
[1767481623184,0.04641998,90544.0,90538.0,0.00046354]
[1767481623401,0.04641998,90544.0,90538.0,0.00082155]
[1767481624198,0.01104411,90546.0,90541.0,0.06626777]
[1767481625219,0.01104423,90545.0,90542.0,0.01094458]
[1767481626003,0.000999,90542.0,90541.0,0.01104472]
[1767481626203,0.01104423,90545.0,90541.0,0.01104472]
[1767481626620,0.01104411,90546.0,90541.0,0.01104472]
[1767481627204,0.01104411,90546.0,90537.0,0.05766916]
[1767481627205,0.0110463,90528.0,90523.0,0.00554691]
[1767481627505,0.01104594,90531.0,90528.0,0.01]
[1767481627819,0.01104581,90532.0,90528.0,0.01]
[1767481628016,0.01104581,90532.0,90528.0,0.0210463]
[1767481628219,0.05522888,90533.0,90528.0,0.0210463]
[1767481628418,0.01104557,90534.0,90530.0,0.01094606]
[1767481629595,0.01104569,90533.0,90529.0,0.01104618]
[1767481629775,0.01104569,90533.0,90528.0,0.04164561]
[1767481629932,0.01104569,90533.0,90529.0,0.05767014]
[1767481630150,0.01104581,90532.0,90529.0,0.04662396]
[1767481630770,0.01104581,90532.0,90528.0,0.0110463]
[1767481630968,0.01104581,90532.0,90528.0,0.05767026]
[1767481631369,0.01104594,90531.0,90528.0,0.04562496]
[1767481631597,0.01104642,90527.0,90523.0,0.06879135]
[1767481631751,0.01104642,90527.0,90524.0,0.04662396]
[1767481631956,0.06627913,90527.0,90524.0,0.04662396]
[1767481632833,0.01104642,90527.0,90524.0,0.04662396]
[1767481633117,0.06627915,90527.0,90524.0,0.04662396]
[1767481633316,0.05523397,90524.0,90523.0,0.02216739]
[1767481633628,0.01104655,90526.0,90523.0,0.02216739]
[1767481633629,0.06627977,90526.0,90523.0,0.02216739]
[1767481633775,0.05523383,90525.0,90524.0,0.000999]
[1767481634182,0.05523383,90525.0,90523.0,0.02216739]
[1767481634601,0.0662835,90521.0,90518.0,9.612e-05]
[1767481634814,0.06624642,90521.0,90518.0,9.612e-05]
[1767481635014,0.06524742,90521.0,90518.0,9.612e-05]
[1767481635236,0.01001108,90521.0,90518.0,9.612e-05]